Workbook

Sheet Guadalajara
A9: REPORTE DE ACTIVIDADES RESIDENCIA GUADALAJARA
A11: NOVIEMBRE
B12: CONSERVACIÓN RUTINARIA
B13: CÓDIGO | C13: CAMINO | D13: TOTAL KM. DEL CAMINO | E13: TRAMO A INTERVENIR | F13: ACTIVIDADES REALIZADAS | G13: MUNICIPIOS BENEFICIADOS | H13: KMS CONSERVADOS | I13: KMS CONSERVADOS (30%)
B14: 102 | C14: BUENAVISTA - TLAJOMULCO DE ZÚÑIGA | D14: 9 | E14: 0+400-6+800( TRAMOS AISLADOS) | F14: LIMPIEZA BACHEO SUPERFICIAL AISLADO/ MEZCLA EN CALIENTE | G14: TLAJOMULCO DE ZÚÑIGA | H14: 6.4 | I14: =H14*0.3 -> 1.92
B15: 106 | C15: COYULA - MATATLAN | D15: 17.4 | E15: 0+000-5+500( TRAMOS AISLADOS) | F15: LIMPIEZA BACHEO SUPERFICIAL AISLADO/ MEZCLA EN CALIENTE | G15: TONALÁ | H15: 5.5 | I15: =H15*0.3 -> 1.65
B16: 107 | C16: EL CAPULIN - EL SALTO DE JUANACATLAN | D16: 9.6 | E16: 12+500-21+200( TRAMOS AISLADOS) | F16: LIMPIEZA BACHEO SUPERFICIAL AISLADO/ MEZCLA EN CALIENTE | G16: EL SALTO | H16: 8.7 | I16: 2.61
B17: 113 | C17: STA. CRUZ DE LAS FLORES-TLAJOMULCO DE ZUÑIGA-CUYUTLAN-CAJITITLAN | D17: 26.9 | E17: 1+000-0+200( TRAMOS AISLADOS) | F17: LIMPIEZA BACHEO SUPERFICIAL AISLADO/ MEZCLA EN CALIENTE | G17: TLAJOMULCO DE ZÚÑIGA | H17: 0.8 | I17: 0.24
B18: 115 | C18: LA CALERA - CAJITITLAN | D18: 6.5 | E18: 1+000-0+200( TRAMOS AISLADOS) | F18: LIMPIEZA BACHEO SUPERFICIAL AISLADO/ MEZCLA EN CALIENTE | G18: TLAJOMULCO DE ZÚÑIGA | H18: 0.8 | I18: 0.24
B19: 122 | C19: OCOTLAN - TOTOTLAN | D19: 25.5 | E19: 3+600-21+200( TRAMOS AISLADOS) | F19: LIMPIEZA BACHEO SUPERFICIAL AISLADO/ MEZCLA EN CALIENTE | G19: OCOTLÁN | H19: =21.2-3.6 -> 17.6 | I19: 5.28
B20: 124 | C20: PARQUE J. GUADALUPE MONTENEGRO - EL CASTILLO | D20: 12.4 | E20: 0+000+8+600( TRAMOS AISLADOS) | F20: LIMPIEZA BACHEO SUPERFICIAL AISLADO/ MEZCLA EN CALIENTE | G20: EL SALTO | H20: 8.6 | I20: 2.58
B21: 129 | C21: PONCITLAN - ZAPOTLAN DEL REY | D21: 9.5 | E21: 0+000-2+200( TRAMOS AISLADOS) | F21: LIMPIEZA BACHEO SUPERFICIAL AISLADO/ MEZCLA EN CALIENTE | G21: ZAPOTLÁN DEL REY | H21: 2.2 | I21: 0.66
B22: 148 | C22: SANTA ROSA - CHAPALA | D22: 16.4 | E22: 0+400-6+800( TRAMOS AISLADOS) | F22: LIMPIEZA BACHEO SUPERFICIAL AISLADO/ MEZCLA EN CALIENTE | G22: IXTLAHUACÁN DE LOS MEMBRILLOS | H22: 6.4 | I22: 1.92
B23: S/C | C23: NODO VIAL LIBRAMIENTO DE CHAPALA | D23: 1.5 | E23: 0+000-0+450( TRAMOS AISLADOS) | F23: LIMPIEZA BACHEO SUPERFICIAL AISLADO/ MEZCLA EN CALIENTE | G23: CHAPALA | H23: 0.45 | I23: 0.135
B24: S/C | C24: PROLONGACION COLON | E24: 0+200 - 1+000( TRAMOS AISLADOS) | F24: LIMPIEZA BACHEO SUPERFICIAL AISLADO/ MEZCLA EN CALIENTE | G24: TLAJOMULCO DE ZÚÑIGA | H24: 0.8 | I24: 0.24
A25: =SUM(#REF!) ->  | G25: TOTAL | H25: =SUM(H14:H24) -> 58.25 | I25: =SUM(I14:I24) -> 17.475
B28: CONSERVACIÓN RUTINARIA
B29: CODIGO. | C29: CARRETERA | D29: MUNICIPIO | E29: KM POR ATENDER
B30: 108 191 121 | C30: CONSERVACIÓN RUTINARIA CÓD. 108 EC (LA BARCA - ATOTONILCO) - CONDIRO - CANALES, CAMINO CÓD. 191 OCOTLÁN - SAN MIGUEL DE LA PAZ - JAMAY, KM DEL 0+000 AL KM 8+000 Y DEL 11+000 AL KM 17+000, CAMINO CÓD. 121 OCOTLÁN - LA COMUNIDAD - LABOR VIEJA, EN OCOTLÁN, JAMAY Y LA BARCA. | D30: OCOTLÁN JAMAY LA BARCA | E30: 14
D31: TOTAL | E31: =SUM(E27:E30) -> 14

Sheet Teocaltiche
A8: REPORTE DE ACTIVIDADES RESIDENCIA TEOCALTICHE
A9: NOVIEMBRE
B10: CÓDIGO | C10: CAMINO | D10: TOTAL KM. DEL CAMINO | E10: TRAMO A INTERVENIR | F10: ACTIVIDADES REALIZADAS | G10: MUNICIPIOS BENEFICIADOS | H10: KMS CONSERVADOS | I10: KMS CONSERVADOS (30%)
B11: 201 | C11: IXTLAHUACAN DEL RIO-CUQUIO-MANALISCO-YAHUALICA | D11: 59.5 | E11: 0+000 AL 15+450 27+580 AL 28+100 40+000 AL 43+600 59+400 59+200 57+500 57+000 56+000 | F11: BACHEO SUPERFICIAL AISLADO CON MEZCLA ELABORADA EN EL LUGAR RE INSTALACIÓN DE SEÑALAMIENTO VERTICAL AISLADO | G11: IXLAHUACAN DEL RIO CUQUIO YAHUALICA DE GONZÁLEZ GALLO | H11: =15.45+(28.1-27.58)+3.6 -> 19.57 | I11: =H11*0.3 -> 5.871
B12: 202 | C12: ENTRONQUE CARRETERO 201.-MANALISCO | D12: 1.949 | E12: 0+100 1+880 | F12: RE INSTALACIÓN DE SEÑALAMIENTO VERTICAL AISLADO | G12: YAHUALICA DE GONZÁLEZ GALLO | I12: =H12*0.3 -> 0
B13: 205 | C13: YAHUALICA-TEOCALTICHE-JARALILLO | D13: 96.2 | E13: 0+000 AL 23+860 44+000 AL 53+314 59+000 AL 96+000 (TRAMOS AISLADOS) 1+600 53+000 | F13: LIMPIEZA Y PERFILA DE CORONA LIMPIEZA DE CUNETAS SALIDA DE CUNETAS HOMOGENEIZAR MATERIAL PARA ELAB. DE MEZCLA ELABORACIÓN DE MEZCLA ASFÁLTICA EN EL LUGAR RE INSTALACIÓN DE SEÑALAMIENTO CRIBAR MATERIAL PARA BASE BACHEO SUPERFICIAL AISLADO CON BASE BACHEO SUPERFICIAL AISLADO CON MEZCLA EN EL LUGAR BACHEO SUPERFICIAL CON CEMENTANTE | G13: YAHUALICA DE GONZÁLEZ GALLO, TEOCALTICHE ENCARNACION DE DIAZ MEXTICACAN | H13: =23.86+(53.314-44)+(96-59) -> 70.174 | I13: 21.0522
B14: 207 | C14: MEXTICACAN-CAÑADAS DE OBREGÓN | D14: 16.9 | E14: 4+600 AL 16+500 | F14: BACHEO SUPERFICIAL AISLADO | G14: MEXTICACAN | H14: 11.9 | I14: 3.57
B15: 211 | C15: TEOCALTICHE-VILLA HIDALGO | D15: 26.6 | E15: 0+000 AL 17+300 (TRAMOS AISLADDOS) | F15: DESMONTE A MANO BACHEO SUPERFICIAL AISLADO CON MEZCLA PINTURA DE RAYA CENTRAL | G15: TEOCALTICHE VILLA HIDALGO | H15: 17.3 | I15: 5.19
B16: 212 | C16: ENCARNACIÓN DE DÍAZ-SAN SEBASTIÁN-EL TERRERO. | D16: 35.5 | E16: 0+000 AL 12+000 | F16: BACHEO SUPERFICIAL AISLADO CON BASE | G16: ENCARNACION DE DIAZ | H16: 12 | I16: 3.6
B17: 213 | C17: LAGOS DE MORENO-EL PUESTO-LA TROJE | D17: 51 | E17: 0+000 AL 2+000 9+000 AL 12+000 | F17: BACHEO SUPERFICIAL AISLADO CON BASE | G17: LAGOS DE MORENO | H17: 5 | I17: 1.5
B18: 214 | C18: LA RESURRECCIÓN-EL DESTIERRO-BETULIA | D18: 44.3 | E18: 0+000 AL 13+500 | F18: BACHEO SUPERFICIAL AISLADO CON MEZCLA BACHEO SUPERFICIAL AISLADO CON TEPETATE | G18: ENCARNACION DE DIAZ | H18: 13.5 | I18: 4.05
B19: 215 | C19: EL LLANO-TEOCALTICHE. | D19: 35.3 | E19: 8+000 AL 14+500 16+000 AL 35+300 (TRAMOS AISLADO) | F19: BACHEO SUPERFICIAL AISLADO CON TEPETATE EXTRACCIÓN DE MATERIAL DE MALA CALIDAD BACHEO SUPERFICIAL AISLADO BACHEO PROFUNDO AISLADO | G19: JALOSTOTITLAN TEOCALTICHE | H19: =6.5+(35.3-16) -> 25.8 | I19: 7.74
B20: 225 | C20: YAHUALICA-HUISQUILCO | D20: 10.9 | E20: 1+300 | F20: RE INSTALACIÓN DE SEÑALAMIENTO VERTICAL AISLADO | G20: YAHUALICA DE GONZÁLEZ GALLO | I20: 0
B21: 233 | C21: LIBRAMIENTO TEOCALTICHE | D21: 9.099 | E21: 0+000 AL 9+099 (TRAMOS AISLADOS) | F21: DESMONTE A MANO LIMPIEZA DE LA SUPERFICIE DE RODAMIENTO BACHEO SUPERFICIAL AISLADO CON MEZCLA EN EL LUGAR REPOSICIÓN DE MARCAS SOBRE EL PAVIMENTO (ISLETAS) REPOSICIÓN DE MARCAS SOBRE EL PAVIMENTO ( FRANJAS LOGARITMICAS ) PINTURA DE RAYA CENTRAL | G21: TEOCALTICHE | H21: 9.099 | I21: 2.7297
G22: TOTAL | H22: =SUM(H11:H21) -> 184.343 | I22: =SUM(I11:I21) -> 55.3029

Sheet San Miguel
A9: REPORTE DE ACTIVIDADES RESIDENCIA SAN MIGUEL
A11: NOVIEMBRE
B12: CONSERVACIÓN RUTINARIA
B13: CÓDIGO | C13: CAMINO | D13: TOTAL KM. DEL CAMINO | E13: TRAMO A INTERVENIR | F13: ACTIVIDADES REALIZADAS | G13: MUNICIPIOS BENEFICIADOS | H13: KMS CONSERVADOS | I13: KMS CONSERVADOS (30%)
B14: 304 | C14: JALOSTOTITLAN-SN. MIGUEL-SN. JULIAN-SN. DIEGO DE A. - LIM.EDO. | D14: 75 | E14: DEL KM. 17+500 AL KM. 17+100 DEL KM. 20+000 AL KM. 25+000 DEL KM. 62+000 AL KM. 65+500 DEL KM. 68+000 AL KM. 73+300 | F14: TRABAJOS DE BACHEO Y/O CALAVEREO CON MEZCLA ASFALTICA (ELABORADA CON MATERIAL RECICLADO) Y TEPETATE TRABAJOS DE BACHEO Y/O CALAVEREO CON MEZCLA ASFALTICA CALIENTE (PROPORCIONADA POR EL H. AYUNTAMIENTO DE SAN DIEGO DE A. | G14: SAN MIGUEL EL ALTO SAN DIEGO DE ALEJANDRIA | H14: =0.4+5+3.5+5.3 -> 14.2 | I14: =H14*0.3 -> 4.26
B15: 307 | C15: ATOTONILCO - SAN MIGUEL EL ALTO - SAN JUAN DE LOS LAGOS | D15: 95.7 | E15: EN EL KM. 29+500 DEL KM. 47+500 AL KM. 91+000 | F15: TRABAJOS DE BACHEO CON MATERIAL TEPETATE TRABAJOS DE REMOCION DE MATERIAL PRODUCTO DE DERRUMBES TRABAJOS DE BACHEO Y/O CALAVEREO CON TEPETATE Y MEZCLA ASFALTICA | G15: ARANDAS SAN MIGUEL EL ALTO ATOTONILCO EL ALTO | H15: =91-47.5 -> 43.5 | I15: =H15*0.3 -> 13.05
B16: 314 | C16: TEPATITLAN - ARANDAS - LIM. DE EDO. | D16: 97.1 | E16: DEL KM. 3+000 AL KM. 7+000 DEL KM. 15+500 AL KM. 25+000 PLATAFORMA KM. 27+000 DEL KM. 26+000 AL KM. 42+800 DEL KM. 60+000 AL KM. 60+200 DEL KM. 62+000 AL KM. 62+600 DEL KM. 68+000 AL KM. 85+000 | F16: TRABAJOS DE BACHEO Y/O CALAVEREO CON MEZCLA ASFALTICA (ELABORADA CON MATERIAL RECICLADO) TRABAJOS DE BACHEO CON TEPETATE Y MEZCLA ASFALTICA | G16: SAN IGNACIO CERRO GORDO TEPATITLÁN DE MORELOS ARANDAS JESÚS MARÍA | H16: =4+9.5+(42.8-26)+0.2+0.6+(85-68) -> 48.1 | I16: 14.43
B17: 326 | C17: TEPATITLAN-SN. JOSE DE GRACIA-SN. FCO. DE ASIS-ATOTONILCO | D17: 42 | E17: DEL KM. 29+000 AL KM. 32+000 | F17: TRABAJOS DE RENIVELACIONES SOBRE CARPETA ASFÁLTICA CON MATERIAL TEPETATE | G17: ATOTONILCO EL ALTO | H17: 3 | I17: 0.9
B18: 349 | C18: LIBRAMIENTO SUR TEPATITLAN | D18: 7 | E18: DEL KM. 0+000 AL KM. 2+500 DEL KM. 13+000 AL KM. 17+000 | F18: TRABAJOS DE BACHEO Y/O CALAVEREO CON MEZCLA ASFALTICA (ELABROADA CON MATERIAL RECICLADO | G18: TEPATITLÁN DE MORELOS | H18: 6.5 | I18: 1.95
G19: TOTAL | H19: =SUM(H14:H18) -> 115.3 | I19: =SUM(I14:I18) -> 34.59

Sheet Sayula
A9: REPORTE DE ACTIVIDADES RESIDENCIA SAYULA
A11: NOVIEMBRE
B12: CONSERVACIÓN RUTINARIA
B13: CÓDIGO | C13: CAMINO | D13: TOTAL KM. DEL CAMINO | E13: TRAMO A INTERVENIR | F13: ACTIVIDADES REALIZADAS | G13: MUNICIPIOS BENEFICIADOS | H13: KMS CONSERVADOS | I13: KMS CONSERVADOS (30%)
B14: 401 | C14: ACATLAN - CD GUZMAN | D14: 91 | E14: 2+900 AL 15+000 33+000 AL 33+900 62+000 AL 88+000 | F14: BACHEO DESMONTE | G14: ACATLAN DE JUÁREZ ZACOALCO DE TORRES SAYULA GÓMEZ FARÍAS | H14: 39 | I14: =H14*0.3 -> 11.7
B15: 417 | C15: INGRESO SUR A CD GUZMAN | D15: 5.1 | E15: 0+000 AL 5+100 | F15: BACHEO | G15: ZAPOTLÁN EL GRANDE | H15: 5.1 | I15: =H15*0.3 -> 1.53
B16: 432 | C16: SAYULA - SAN GABRIEL | D16: 43.6 | E16: 0+000 AL 1+500 4+000 AL 4+600 | F16: ENTREGA DE MEZCLA Y EMULSION ELABORACION DE MEZCLA DESMONTE | G16: SAYULA | H16: 2.1 | I16: 0.63
B17: 435 | C17: ATEMAJAC - LA FRONTERA - LAGUNILLAS | D17: 41.5 | E17: 44+900 AL 45+500 | F17: BACHEO | G17: TAPALPA | H17: 0.6 | I17: 0.18
B18: 436 | C18: ENTR. CARR. 401 - TAPALPA | D18: 32.5 | E18: 0+000 AL 0+500 | F18: DESMONTE | G18: AMACUECA | H18: 0.5 | I18: 0.15
B19: 437 | C19: CATARINA - SANTA CLARA - ATEMAJAC | D19: 34.2 | E19: 27+200 AL 34+000 | F19: BACHEO | G19: ATEMAJAC DE BRIZUELA | H19: 6.8 | I19: 2.04
B20: 465 | C20: LIBRAMIENTO DE ZAPOTILTIC | D20: 5.043 | E20: 0+600 AL 4+000 | F20: BACHEO | G20: ZAPOTILTIC | H20: 3.4 | I20: 1.02
B21: MEX. 110 | C21: CARR FEDERAL ZONA URBANA TAMAZULA | D21: 2 | E21: 0+000 AL 2+000 | F21: CALAFATEO BACHEO SEÑALAMIENTO HORIZONTAL | G21: TAMAZULA DE GORDIANO | H21: 2 | I21: 0.6
G22: TOTAL | H22: =SUM(H14:H21) -> 59.5 | I22: =SUM(I14:I21) -> 17.85

Sheet Ahualulco
A9: REPORTE DE ACTIVIDADES RESIDENCIA AHUALULCO
A11: NOVIEMBRE
B12: CÓDIGO | C12: CAMINO | D12: TOTAL KM. DEL CAMINO | E12: TRAMO A INTERVENIR | F12: ACTIVIDADES REALIZADAS | G12: MUNICIPIOS BENEFICIADOS | H12: KMS CONSERVADOS | I12: KMS CONSERVADOS (30%)
B13: 601 | C13: TALA - STA. CRUZ DE LAS FLORES | D13: 35 | E13: DEL KM 8+000 AL KM 10+200 DEL KM 14+000 AL KM 35+000 | F13: BACHEO Y CALAVEREO. | G13: TALA TLAJOMULCO DE ZUÑIGA. | H13: 23.2 | I13: =H13*0.3 -> 6.96
B14: 602 | C14: EL AMARILLO - LA VEGA | D14: 8.9 | E14: DEL KM 0+000 AL KM 1+500 | F14: DESMONTE EN EL DERECHO DE VIA. | G14: TEUCHITLÁN | H14: 1.5 | I14: =H14*0.3 -> 0.45
B15: 604 | C15: EL REFUGIO - SAN MARCOS | D15: 53.7 | E15: DEL KM 0+000 AL KM 53+700 | F15: EXTRACCION DE EMULSION, DESMONTE, BACHEO Y CALAVEREO. | G15: TALA TEUCHITLAN AHUALULCO DE MERCADO SAN JUANITO DE ESCOBEDO ETZATLÁN SAN MARCOS. | H15: 53.7 | I15: 16.11
B16: 608 | C16: AHUALULCO - AMECA | D16: 30.6 | E16: DEL KM 1+000 AL KM 30+600 | F16: DESMONTE EN EL DERECHO DE VIA. | G16: AHUALULCO DE MERCADO AMECA. | H16: 29.6 | I16: 8.88
B17: 609 | C17: ENTR. CARR. 604 - EL CARMEN DE ORDAZ | D17: 3.5 | E17: DEL KM 0+000 AL KM 3+500 | F17: DESMONTE EN EL DERECHO DE VIA. | G17: AHUALULCO DE MERCADO | H17: 3.5 | I17: 1.05
B18: 616 | C18: ENTR. CARR. 604 - SAN JUANITO DE ESCOBEDO | D18: 4.2 | E18: DEL KM 0+000 AL KM 4+200 | F18: BACHEO Y CALAVEREO. | G18: SAN JUANITO DE ESCOBEDO. | H18: 4.2 | I18: 1.26
B19: 618 | C19: CRUC. STA. MARIA - SN. MARTIN HGO. - AMECA | D19: 23.1 | E19: DEL KM 9+000 AL KM 23+100 | F19: APLICACIÓN DE PINTURA EN RAYAS, (ENTRONQUE) | G19: SAN MARTÍN HIDALGO AMECA. | H19: 14.1 | I19: 4.23
B20: 620 | C20: ENTR. CARR. (AMECA-MASCOTA) - GUACHINANGO | D20: 7.5 | E20: DEL KM 0+000 AL KM 4+000 | F20: BACHEO Y CALAVEREO. | G20: GUACHINANGO | H20: 4 | I20: 1.2
B21: 621 | C21: LA COFRADIA - LA SAUCEDA - BUENAVISTA | D21: 22.2 | E21: DEL KM 0+000 AL KM 22+200 | F21: BACHEO Y CALAVEREO. | G21: COCULA SAN MARTÍN HIDALGO. | H21: 22.2 | I21: 6.66
B22: 626 | C22: AHUALULCO - SAN IGNACIO - EL CARMEN | D22: 9 | E22: DEL KM 0+000 AL KM 9+000 | F22: DESMONTE EN EL DERECHO DE VIA. | G22: AHUALULCO DE MERCADO | H22: 9 | I22: 2.7
B23: 628 | C23: ENTR. CARR. 612 - LA MAZATA | D23: 5.2 | E23: DEL KM 0+000 AL KM 5+200 | F23: DESAZOLVE DE CUNETAS, DESMONTE EN EL DERECHO DE VIA, BACHEO Y CALAVEREO | G23: ETZATLÁN SAN JUANITO DE ESCOBEDO. | H23: 5.2 | I23: 1.56
B24: 631 | C24: ESTIPAC - EL TECUAN - BUENAVISTA | D24: 6 | E24: DEL KM 0+000 AL KM 6+000 | F24: BACHEO Y CALAVEREO. | G24: VILLA CORONA | H24: 6 | I24: 1.8
B25: 632 | C25: SAN MARCOS - LIMITE DE ESTADOS | D25: 10.4 | E25: DEL KM 0+000 AL KM 3+140 | F25: DESMONTE EN EL DERECHO DE VIA, BACHEO Y CALAVEREO. | G25: SAN MARCOS | H25: 3.14 | I25: 0.942
B26: 633 | C26: VILLA CORONA - ATOTONILCO EL BAJO | D26: 9.2 | E26: DEL KM 0+000 AL KM 9+200 | F26: BACHEO Y CALAVEREO. | G26: VILLA CORONA | H26: 9.2 | I26: 2.76
B27: 636 | C27: ENTR. CARR. (GUAD.-AMECA) - EL SALITRE | D27: 6.4 | E27: DEL KM 0+000 AL KM 6+400 | F27: BACHEO Y CALAVEREO. | G27: AMECA | H27: 6.4 | I27: 1.92
B28: 637 | C28: INGRESO NORTE AMECA | D28: 1.1 | E28: DEL KM 0+000 AL KM 1+100 | F28: BACHEO Y CALAVEREO. | G28: AMECA | H28: 1.1 | I28: 0.33
B29: 641 | C29: EL CARMEN - EL AMARILLO | D29: 2.4 | E29: DEL KM 0+000 AL KM 2+400 | F29: BACHEO Y CALAVEREO. | G29: AHUALULCO DE MERCADO TEUCHITLÁN. | H29: 2.4 | I29: 0.72
G30: TOTAL | H30: =SUM(H13:H29) -> 198.44 | I30: =SUM(I13:I29) -> 59.532

Sheet Villa Guerrero
A11: REPORTE DE ACTIVIDADES RESIDENCIA VILLA GUERRERO
A13: NOVIEMBRE
B14: CÓDIGO | C14: CAMINO | D14: TOTAL KM. DEL CAMINO | E14: TRAMO A INTERVENIR | F14: ACTIVIDADES REALIZADAS | G14: MUNICIPIOS BENEFICIADOS | H14: KMS CONSERVADOS | I14: KMS CONSERVADOS (30%)
B15: 701 | C15: ENT.CARR.FED.MEX.23-VILLA GUERRERO | D15: 38.646 | E15: DEL KM 0+000 AL KM 38+600 EN EL KM 29+000 | F15: BACHEO SUPERFICIAL CON TIERRA | G15: COLOTLÁN TOTATICHE VILLA GUERRERO | H15: 38.6 | I15: =H15*0.3 -> 11.58
B16: 702 | C16: VILLA GUERRERO-SAN MARTIN DE BOLAÑOS | D16: 62.15 | E16: DEL KM 1+300 AL KM 5+340 DEL KM 38+700 AL KM 40+000 DEL KM 53+800 AL KM 55+300 | F16: REEMOSION DE DERRUMBES LIMPIEZA DE CUNETAS BACHEO SUPERFICIAL CON TIERRA DESHIERBE | G16: BOLAÑOS SAN MARTIN DE BOLAÑOS VILLAGUERRERO | H16: =2.8+4.04 -> 6.84 | I16: =H16*0.3 -> 2.052
B17: 705 | C17: MONTE ESCOBEDO-MEZQUITIC | D17: 22.33 | E17: DEL KM 30+000 AL KM 31+000 | F17: DESHIERBE | G17: MEZQUITIC | H17: 1 | I17: 0.3
B18: 707 | C18: HUEJUQUILLA-VALPARAISO | D18: 20.7 | E18: DEL KM 1+000 AL KM 2+500 | F18: DESHIERBE | G18: HUEJUQUILLA EL ALTO | H18: 1.5 | I18: 0.45
B19: 710 | C19: E.C.702-BOLAÑOS-HUILACATITLAN | D19: 7.25 | E19: DEL KM 0+000 AL KM 7+250 | F19: BACHEO SUPERFICIAL AISLADO | G19: BOLAÑOS | H19: 7.25 | I19: 2.175
B20: 711 | C20: BOLAÑOS-TENZOMPA-HUEJUQUILLA | D20: 130.593 | E20: DEL KM 53+700 AL KM 54+100 DEL KM 117+400 AL KM 124+000 DEL KM 128+000 AL KM 130+500 | F20: REEMOSION DE DERRUMBES,LIMPIEZA DE CUNETAS, DESHIERBE Y BACHEO SUPERFICIAL | G20: HUEJUQUILLA EL ALTO | H20: =(54.1-53.7)+(124-117.4)+(130.5-128) -> 9.5 | I20: 2.85
B21: 712 | C21: HUEJUCAR-MONTE ESCOBEDO | D21: 21.96 | E21: DEL KM 1+300 AL KM 2+000 | F21: DESMONTE | G21: HUEJÚCAR | H21: 0.7 | I21: 0.21
B22: 718 | C22: MEZQUITIC-NOSTIC | D22: 11.206 | E22: DEL KM 2+000 AL KM 6+000 | F22: DESHIERBE | G22: MEZQUITIC | H22: 4 | I22: 1.2
B23: 719 | C23: BOLAÑOS-TEPEC | D23: 0.869 | E23: DEL KM 0+000 AL KM 0+869 | F23: BACHEO SUPERFICIAL AISLADO | G23: BOLAÑOS | H23: 0.869 | I23: 0.2607
G24: TOTAL | H24: =SUM(H15:H23) -> 70.259 | I24: =SUM(I15:I23) -> 21.0777

Sheet Resumen por Residencia
C2: S E C R E T A R I A D E I N F R A E S T R U C T U R A Y O B R A P Ú B L I C A
C5: D I R E C C I Ó N G E N E R A L D E I N F R A E S T R U C T U R A C A R R E T E R A
C13: AVANCES MIDE POR RESIDENCIA NOVIEMBRE 2018
C19: RESIDENCIA | D19: TOTAL DE CAMINOS ATENDIDOS | E19: TOTAL KM CONSERVADOS | F19: TOTAL KM CONSERVADOS
C20: GUADALAJARA | D20: 11 | E20: =Guadalajara!I25+Guadalajara!E31 -> 31.475 | F20: =Guadalajara!#REF! -> 
C21: TEOCALTICHE | D21: 11 | E21: =Teocaltiche!I22 -> 55.3029 | F21: =Teocaltiche!#REF! -> 
C22: SAN MIGUEL | D22: 5 | E22: ='San Miguel'!I19 -> 34.59 | F22: ='San Miguel'!#REF! -> 
C23: SAYULA | D23: 8 | E23: =Sayula!I22 -> 17.85 | F23: =Sayula!#REF! -> 
C24: AHUALULCO | D24: 17 | E24: =Ahualulco!I30 -> 59.532 | F24: =#REF! -> 
C25: VILLA GUERRERO | D25: 9 | E25: ='Villa Guerrero'!I24 -> 21.0777 | F25: =#REF! -> 
C26: TOTAL | D26: =SUM(D20:D25) -> 61 | E26: =SUM(E20:E25) -> 219.8276 | F26: =SUM(F20:F25) -> 

Sheet Resumen Global
D2: S E C R E T A R I A D E I N F R A E S T R U C T U R A Y O B R A P Ú B L I C A
D5: D I R E C C I Ó N G E N E R A L D E I N F R A E S T R U C T U R A C A R R E T E R A
D13: AVANCES MIDE NOVIEMBRE 2018
D17: RESIDENCIA | E17: TOTAL DE CAMINOS ATENDIDOS EN EL MES NOVIEMBRE | F17: TOTAL KM. CONSERVADOS NOVIEMBRE | G17: TOTAL KM. CONSERVADOS ACUMULADOS | H17: TOTAL KM. CONSERVADOS
D18: GUADALAJARA, TEOCALTICHE, SAN MIGUEL, SAYULA, AHUALULCO, VILLA GUERRERO. | E18: ='Resumen por Residencia'!D26 -> 61 | F18: ='Resumen por Residencia'!E26 -> 219.8276 | G18: 4443.7777 | H18: ='Resumen por Residencia'!F26 -> 
D36: ATENTAMENTE
D40: ARQ. JUAN PABLO CORTES CALLEJA
D41: DIRECTOR GENERAL DE INFRAESTRUCTURA CARRTERA.
